bitfinex-derivatives/quotes_BTCF0:USTF0_20240902
["timestamp","ask_amount","ask_price","bid_price","bid_amount"]
[1725241013298,0.131,57384.0,57383.0,1.570738]
[1725241013802,0.13,57384.0,57383.0,1.570738]
[1725241014096,0.00026118,57389.0,57388.0,0.08713]
[1725241014400,0.00026118,57389.0,57388.0,1.04793]
[1725241014588,0.00026118,57389.0,57388.0,1.57069]
[1725241014789,0.00026118,57389.0,57388.0,5.34069]
[1725241015199,0.00026118,57389.0,57388.0,1.57069]
[1725241015588,0.00026118,57389.0,57388.0,5.34069]
[1725241015798,0.3608,57404.0,57397.0,0.087116]
[1725241016003,0.36446241,57404.0,57397.0,0.087116]
[1725241016201,0.36446241,57404.0,57397.0,1.209796]
[1725241016202,0.00366241,57404.0,57397.0,1.209796]
[1725241016507,0.087087,57417.0,57409.0,0.087098]
[1725241016800,0.12,57417.0,57411.0,0.087094]
[1725241018304,0.16,57415.0,57412.0,0.0632]
[1725241018492,0.28,57415.0,57411.0,0.087094]
[1725241018699,0.0004,57412.0,57411.0,0.087094]
[1725241018897,0.1204,57412.0,57411.0,0.087094]
[1725241021309,0.1254,57412.0,57411.0,0.087094]
[1725241022401,0.1254,57412.0,57410.0,0.0672]
[1725241022606,0.0004,57411.0,57410.0,0.0672]
[1725241022793,0.1104,57411.0,57410.0,0.0672]
[1725241023904,0.1104,57411.0,57410.0,0.154297]
[1725241025111,0.1154,57411.0,57410.0,0.154297]
[1725241027105,0.1154,57411.0,57410.0,0.0672]
[1725241030501,0.1154,57411.0,57409.0,0.0674]
[1725241030704,0.1154,57411.0,57407.0,0.00026118]
[1725241030705,0.087497,57410.0,57407.0,0.00026118]
[1725241030903,0.6083,57408.0,57407.0,0.00026118]
[1725241031207,0.2704,57408.0,57407.0,0.00026118]
[1725241031405,0.27,57408.0,57407.0,0.00026118]
[1725241031714,1.75336,57408.0,57397.0,0.0004]
[1725241031902,0.608315,57398.0,57397.0,0.0004]
[1725241032208,0.718315,57398.0,57397.0,0.0004]
[1725241033016,1.240995,57398.0,57397.0,0.0004]
[1725241033308,0.718315,57398.0,57397.0,0.0004]
[1725241033609,0.1104,57398.0,57397.0,0.087516]
[1725241034117,0.1104,57398.0,57397.0,1.338396]
[1725241034501,0.1214,57398.0,57397.0,1.338396]
[1725241035805,0.1214,57398.0,57397.0,0.738396]
[1725241036702,0.2814,57398.0,57397.0,0.0004]
[1725241036903,0.41099216,57398.0,57397.0,0.0004]
[1725241037100,0.41199216,57398.0,57397.0,0.0004]
[1725241037821,0.41099216,57398.0,57397.0,0.0004]
[1725241038011,0.25399216,57398.0,57397.0,0.0004]
[1725241039116,0.31619216,57398.0,57397.0,0.0004]
[1725241039312,0.32019216,57398.0,57397.0,0.0004]
[1725241040615,0.266715,57398.0,57397.0,0.0004]
[1725241041012,0.271715,57398.0,57397.0,0.0004]
[1725241046416,0.1224,57398.0,57397.0,0.0004]
[1725241047229,0.1224,57398.0,57397.0,0.087516]
[1725241047528,0.1224,57398.0,57397.0,0.216116]
[1725241049219,0.1224,57398.0,57397.0,1.338796]
[1725241049829,0.1224,57398.0,57397.0,1.90322753]
[1725241050023,0.1224,57398.0,57397.0,5.67322753]
[1725241050531,0.0124,57398.0,57397.0,5.67322753]
[1725241052431,0.01213882,57398.0,57397.0,5.67322753]
[1725241052821,0.13213882,57398.0,57397.0,0.3612]
[1725241053017,0.13213882,57398.0,57397.0,0.0004]
[1725241053018,0.41925382,57398.0,57397.0,0.0004]
[1725241053222,0.78005382,57398.0,57397.0,0.0004]
[1725241053421,0.78378355,57398.0,57397.0,0.0004]
[1725241053716,0.87089855,57398.0,57397.0,0.0004]
[1725241054141,0.78378355,57398.0,57397.0,0.0004]
[1725241058627,0.49666855,57398.0,57397.0,0.0004]
[1725241059034,0.69666855,57398.0,57397.0,0.0004]
[1725241059834,0.78378355,57398.0,57397.0,0.0004]
[1725241060136,0.74378355,57398.0,57397.0,0.0004]
[1725241060533,0.83089855,57398.0,57397.0,0.0004]
[1725241060741,0.087124,57392.0,57383.0,0.05176719]
[1725241060934,0.607938,57384.0,57382.0,0.05176719]
[1725241061142,0.717938,57384.0,57380.0,0.05176719]
[1725241061327,0.16,57381.0,57380.0,0.05176719]
[1725241061529,0.29,57381.0,57380.0,0.05176719]
[1725241063238,0.29,57381.0,57379.0,0.05176719]
[1725241063738,0.13359437,57381.0,57379.0,0.05176719]
[1725241063929,0.13,57381.0,57380.0,1.09540719]
[1725241064130,0.00026141,57386.0,57385.0,0.087135]
[1725241064350,0.10026141,57386.0,57385.0,1.207935]
[1725241064527,0.00026141,57386.0,57385.0,5.58678516]
[1725241064730,0.00026141,57386.0,57385.0,5.63350866]
[1725241065223,0.00026141,57386.0,57385.0,5.63550866]
[1725241065426,0.00013882,57398.0,57393.0,0.087122]
[1725241065626,0.13013882,57398.0,57395.0,0.05177237]
[1725241067432,0.13013882,57398.0,57394.0,0.26669237]
[1725241067628,0.13013882,57398.0,57394.0,0.21492]
[1725241067832,0.13413882,57398.0,57394.0,0.26669237]
[1725241068035,0.00413882,57398.0,57396.0,0.16]
[1725241068231,0.00413882,57398.0,57396.0,0.21177237]
[1725241068438,0.00013882,57398.0,57397.0,0.609796]
[1725241068637,0.00313882,57398.0,57397.0,0.609796]
[1725241068827,0.00313882,57398.0,57397.0,1.209796]
[1725241070447,0.00613882,57398.0,57397.0,1.209796]
[1725241071238,0.00713882,57398.0,57397.0,1.210796]
[1725241071835,0.00713882,57398.0,57397.0,0.610796]
[1725241072638,0.00713882,57398.0,57397.0,1.210796]
[1725241072845,0.00713882,57398.0,57397.0,1.21445666]
[1725241074738,0.02713882,57398.0,57397.0,1.21445666]
[1725241075544,0.02713882,57398.0,57397.0,0.61445666]
[1725241075842,0.02713882,57398.0,57397.0,0.09177666]
[1725241079644,0.02013882,57398.0,57397.0,0.09077666]
[1725241079842,0.02513882,57398.0,57397.0,0.09077666]
[1725241081141,0.02513882,57398.0,57397.0,0.087116]
[1725241082443,0.11225382,57398.0,57397.0,0.05178765]
[1725241082653,0.11225382,57398.0,57396.0,0.05178765]
[1725241082844,0.0004,57397.0,57396.0,0.05178765]
[1725241083049,0.1104,57397.0,57396.0,0.05178765]
[1725241083353,0.1104,57397.0,57395.0,0.41258765]
[1725241083354,0.197516,57397.0,57395.0,0.41258765]
[1725241083551,0.125,57396.0,57395.0,0.41258765]
[1725241083849,0.235,57396.0,57395.0,0.41258765]
[1725241084240,0.322118,57396.0,57395.0,0.41258765]
[1725241084445,0.322118,57396.0,57395.0,0.3608]
[1725241084948,0.325118,57396.0,57395.0,0.3608]
[1725241085542,0.325118,57396.0,57394.0,0.05178765]
[1725241085842,0.0004,57395.0,57391.0,0.08738641]
[1725241086043,0.0004,57392.0,57391.0,0.08738641]
[1725241086250,0.1204,57392.0,57391.0,0.00026141]
[1725241087245,0.207524,57392.0,57391.0,0.00026141]
[1725241087649,0.207524,57392.0,57391.0,0.00226141]
[1725241088351,0.21110347,57392.0,57391.0,0.00226141]
[1725241090360,0.73190347,57392.0,57391.0,0.00226141]
[1725241090748,0.57190347,57392.0,57391.0,0.00226141]
[1725241091847,0.48477947,57392.0,57391.0,0.00226141]
[1725241092156,0.48477947,57392.0,57391.0,0.45018741]
[1725241092157,0.1204,57392.0,57391.0,0.45018741]
[1725241092655,0.1204,57392.0,57391.0,4.22018741]
[1725241092848,0.1204,57392.0,57391.0,4.28920822]
[1725241093145,0.1204,57392.0,57391.0,4.28928743]
[1725241093350,0.1204,57392.0,57391.0,4.22018741]
[1725241093653,0.0004,57392.0,57391.0,4.22018741]
[1725241094251,0.0004,57392.0,57391.0,4.22384685]
[1725241096540,0.1204,57392.0,57391.0,4.22384685]
[1725241100655,0.1204,57392.0,57391.0,0.45384685]
[1725241100955,0.17387755,57392.0,57391.0,0.45384685]
[1725241102653,0.17387755,57392.0,57391.0,0.45018741]
[1725241102857,0.26100155,57392.0,57391.0,0.00226141]
[1725241103857,0.38760155,57392.0,57391.0,0.00226141]
[1725241104849,0.54760155,57392.0,57391.0,0.00226141]
[1725241105049,1.07032155,57392.0,57391.0,0.00226141]
[1725241105253,1.81993364,57392.0,57391.0,0.00226141]
[1725241105450,0.087137,57384.0,57381.0,0.3245]
[1725241105650,0.0004,57382.0,57376.0,0.087148]
[1725241105853,0.05347755,57381.0,57376.0,0.087148]
[1725241106051,0.0004,57377.0,57376.0,0.087148]
[1725241106260,0.119,57377.0,57376.0,0.087148]
[1725241106456,0.17247755,57377.0,57376.0,0.09088408]
[1725241107054,0.17247755,57377.0,57376.0,0.10088408]
[1725241107460,0.17247755,57377.0,57376.0,0.26088408]
[1725241107661,0.05347755,57377.0,57376.0,1.38376408]
[1725241107868,0.001,57381.0,57380.0,0.087142]
[1725241108157,0.001,57381.0,57379.0,0.06912895]
[1725241108158,0.111,57381.0,57379.0,0.06912895]
[1725241108363,0.0004,57380.0,57377.0,0.06912895]
[1725241108658,0.0004,57378.0,57377.0,0.06912895]
[1725241108850,0.1204,57378.0,57377.0,0.06912895]
[1725241109164,0.1204,57378.0,57376.0,0.006]
[1725241109365,0.1204,57378.0,57377.0,0.06910628]
[1725241109562,0.12,57378.0,57377.0,0.06910628]
[1725241109861,0.12,57378.0,57377.0,0.07510628]
[1725241110252,0.12,57378.0,57377.0,0.23510628]
[1725241110448,0.121,57378.0,57377.0,0.166]
[1725241111259,0.121,57378.0,57377.0,0.23514267]
[1725241112858,0.121,57378.0,57377.0,0.253147]
[1725241113266,0.121,57378.0,57377.0,0.32229653]
[1725241115571,0.07740124,57378.0,57377.0,0.253147]
[1725241115869,0.07740124,57378.0,57377.0,4.545987]
[1725241116070,0.07740124,57378.0,57377.0,4.607687]
[1725241116262,0.001,57378.0,57377.0,4.607687]
[1725241116769,0.001,57378.0,57377.0,5.207687]
[1725241117270,0.001,57378.0,57377.0,4.607687]
[1725241117671,0.001,57378.0,57377.0,4.69397428]
[1725241117972,0.121,57378.0,57377.0,4.545987]
[1725241118168,0.121,57378.0,57377.0,4.023147]
[1725241118566,0.121,57378.0,57377.0,4.545987]
[1725241118772,0.001,57378.0,57377.0,4.545987]
[1725241119868,0.001,57378.0,57377.0,5.45221465]
[1725241120065,0.001,57378.0,57377.0,5.36592737]
[1725241120265,0.001,57378.0,57377.0,4.76592737]
[1725241121276,0.001,57378.0,57377.0,4.85239782]
[1725241121674,0.001,57378.0,57377.0,5.36592737]
[1725241121875,0.001,57378.0,57377.0,4.76592737]
[1725241122469,0.001,57378.0,57377.0,5.36592737]
[1725241122782,0.111,57378.0,57377.0,0.22594037]
[1725241122977,0.111,57378.0,57377.0,0.093147]
[1725241123478,0.198145,57378.0,57377.0,0.006]
[1725241124473,0.358145,57378.0,57377.0,0.006]
[1725241125267,0.198145,57378.0,57377.0,0.006]
[1725241125675,0.197145,57378.0,57370.0,0.087157]
[1725241125870,0.20073652,57378.0,57377.0,0.001]
[1725241126984,0.087148,57377.0,57370.0,0.093157]
[1725241127180,0.0004,57371.0,57370.0,0.093157]
[1725241127483,0.1304,57371.0,57370.0,0.093157]
[1725241127982,0.900476,57371.0,57370.0,0.006]
[1725241128183,0.377556,57371.0,57370.0,0.006]
[1725241128579,0.2894,57371.0,57362.0,0.08717]
[1725241128777,0.087161,57368.0,57362.0,0.09083514]
[1725241128985,0.274062,57367.0,57362.0,0.08717]
[1725241129277,0.394062,57367.0,57362.0,0.08717]
[1725241129674,0.087163,57366.0,57361.0,0.00360837]
[1725241129878,0.207163,57366.0,57365.0,0.36146118]
[1725241130983,0.12,57366.0,57365.0,0.36146118]
[1725241131181,0.12,57366.0,57365.0,0.44862618]
[1725241132481,0.121,57366.0,57365.0,0.44862618]
[1725241133778,0.1214,57366.0,57365.0,0.44862618]
[1725241139590,0.1214,57366.0,57365.0,0.50058104]
[1725241140394,0.1214,57366.0,57365.0,0.44862618]
[1725241141681,0.208563,57366.0,57365.0,0.36146118]
[1725241143097,0.368563,57366.0,57365.0,0.36146118]
[1725241143990,0.208563,57366.0,57365.0,0.36146118]
[1725241145896,0.208563,57366.0,57365.0,0.44862618]
[1725241146788,0.21219038,57366.0,57365.0,0.44862618]
[1725241147693,0.12502738,57366.0,57365.0,0.44862618]
[1725241147886,0.1214,57366.0,57365.0,0.44862618]
[1725241148083,0.1214,57366.0,57365.0,0.51789933]
[1725241148284,0.1214,57366.0,57365.0,0.44862618]
[1725241149892,0.1214,57366.0,57365.0,0.51789933]
[1725241151201,0.1214,57366.0,57365.0,0.44862618]
[1725241153207,0.208563,57366.0,57365.0,0.36146118]
[1725241153394,0.1214,57366.0,57365.0,0.36146118]
[1725241153600,0.208563,57366.0,57365.0,0.36146118]
[1725241155194,0.208563,57366.0,57365.0,0.44793691]
[1725241155404,0.208563,57366.0,57365.0,0.53510191]
[1725241155600,0.1214,57366.0,57365.0,0.44862618]
[1725241156192,0.1214,57366.0,57365.0,0.74145782]
[1725241157305,0.1214,57366.0,57365.0,0.58145782]
[1725241157605,0.1214,57366.0,57365.0,0.08782618]
[1725241157991,0.1214,57366.0,57365.0,0.17476596]
[1725241158206,0.1214,57366.0,57365.0,0.08782618]
[1725241158900,0.1214,57366.0,57365.0,0.17476596]
[1725241159101,0.1214,57366.0,57365.0,0.22066116]
[1725241160993,0.1214,57366.0,57365.0,0.08782618]
[1725241162008,0.1895,57375.0,57365.0,0.08782618]
[1725241162009,0.3608,57388.0,57381.0,0.087141]
[1725241162200,0.12026141,57382.0,57381.0,0.607941]
[1725241163905,0.12026141,57382.0,57381.0,0.447941]
[1725241164505,0.13226141,57382.0,57381.0,0.448941]
[1725241165103,0.13226141,57382.0,57381.0,0.608941]
[1725241165310,0.12826141,57382.0,57381.0,0.608941]
[1725241166607,0.00826141,57382.0,57381.0,0.6126518]
[1725241168205,0.087119,57396.0,57390.0,0.087126]
[1725241168402,0.207119,57396.0,57390.0,0.087126]
[1725241168708,0.207119,57396.0,57389.0,0.57278738]
[1725241168915,0.207119,57396.0,57392.0,0.087124]
[1725241169622,0.08712,57395.0,57392.0,0.087124]
[1725241169807,0.19712,57395.0,57392.0,0.087124]
[1725241171123,0.00183843,57396.0,57395.0,0.087119]
[1725241171408,0.00026141,57400.0,57399.0,0.087113]
[1725241171613,0.00026141,57400.0,57399.0,4.377913]
[1725241171810,0.00026141,57400.0,57399.0,5.500553]
[1725241173617,0.00926141,57400.0,57399.0,5.501553]
[1725241174520,0.00926141,57400.0,57399.0,4.378913]
[1725241174820,0.00926141,57400.0,57399.0,5.501553]
[1725241175116,0.3608,57425.0,57419.0,0.087082]
[1725241175327,0.31527319,57423.0,57420.0,0.16]
[1725241176107,0.05345417,57422.0,57420.0,0.16]
[1725241176409,0.05345417,57421.0,57420.0,0.16]
[1725241176609,0.16345417,57421.0,57420.0,0.16]
[1725241176913,0.16345417,57421.0,57419.0,0.001]
[1725241177119,0.05385417,57420.0,57419.0,0.001]
[1725241177323,0.17385417,57420.0,57419.0,0.001]
[1725241177508,0.17385417,57420.0,57419.0,0.088083]
[1725241178408,0.05285417,57420.0,57419.0,0.087083]
[1725241179310,0.05285417,57420.0,57419.0,0.088083]
[1725241179521,0.0004,57420.0,57419.0,0.088083]
[1725241180018,0.0004,57420.0,57419.0,0.087083]
[1725241180213,0.1104,57420.0,57416.0,0.00026141]
[1725241180515,0.087486,57417.0,57416.0,0.00026141]
[1725241180718,0.1104,57417.0,57416.0,0.00026141]
[1725241183319,0.00026141,57427.0,57416.0,1.12274141]
[1725241183520,0.11026141,57427.0,57426.0,0.16]
[1725241184719,0.087072,57426.0,57419.0,0.447883]
[1725241185019,0.197072,57426.0,57419.0,0.447883]
[1725241185320,0.087483,57420.0,57416.0,0.00026141]
[1725241185525,0.0004,57417.0,57416.0,0.00026141]
[1725241185720,0.1204,57417.0,57416.0,0.00026141]
[1725241188625,0.207486,57417.0,57416.0,0.00026141]
[1725241193119,0.70883172,57417.0,57416.0,0.00026141]
[1725241193624,0.34803172,57417.0,57416.0,0.00026141]
[1725241194223,0.34803422,57417.0,57416.0,0.00026141]
[1725241195638,0.70883422,57417.0,57416.0,0.00026141]
[1725241195933,0.34803422,57417.0,57416.0,0.00026141]
[1725241198031,0.70883422,57417.0,57416.0,0.00026141]
[1725241198237,0.655372,57417.0,57416.0,0.00026141]
[1725241198532,0.294572,57417.0,57416.0,0.00026141]
[1725241199834,0.655372,57417.0,57416.0,0.00026141]
[1725241200538,1.777852,57417.0,57416.0,4.1e-07]
[1725241200741,0.52252,57416.0,57409.0,8.3e-07]
[1725241200929,0.087098,57409.0,57407.0,8.3e-07]
[1725241201242,0.087098,57409.0,57400.0,0.42992299]
[1725241201243,0.08711,57401.0,57400.0,0.42992299]
[1725241201431,0.30462,57401.0,57400.0,0.42992299]
[1725241201737,0.21751,57401.0,57399.0,0.3608]
[1725241202037,0.21551,57401.0,57400.0,0.16]
[1725241202230,0.21511,57401.0,57400.0,0.22938792]
[1725241202933,0.21511,57401.0,57400.0,0.24138792]
[1725241203134,0.13,57401.0,57400.0,0.172]
[1725241203347,0.13,57401.0,57400.0,0.259112]
[1725241203836,0.00026141,57406.0,57400.0,0.259112]
[1725241203837,0.00026141,57406.0,57400.0,1.29464]
[1725241204141,0.00026141,57406.0,57405.0,0.607904]
[1725241204332,0.00026141,57406.0,57405.0,0.730404]
[1725241204535,0.00026141,57406.0,57405.0,0.87785853]
[1725241204729,0.00026141,57406.0,57405.0,0.92363426]
[1725241205439,0.00026141,57406.0,57405.0,0.92663426]
[1725241207737,0.00026141,57406.0,57405.0,2.04923426]
[1725241208535,0.12026141,57406.0,57405.0,1.53592168]
[1725241208738,0.12026141,57406.0,57405.0,0.003]
[1725241209543,0.12026141,57406.0,57405.0,0.0723741]
[1725241209845,0.20736441,57406.0,57405.0,0.0723741]
[1725241210031,0.20736441,57406.0,57405.0,0.003]
[1725241211042,0.087109,57402.0,57401.0,0.0693741]
[1725241211247,0.087109,57402.0,57400.0,0.16]
[1725241211248,0.08711,57401.0,57400.0,0.2293741]
[1725241211443,0.20711,57401.0,57400.0,0.22933526]
[1725241211742,0.0004,57402.0,57400.0,0.22933526]
[1725241211743,0.0004,57402.0,57400.0,1.35197475]
[1725241211936,0.0004,57402.0,57401.0,1.10328578]
[1725241212131,0.0004,57402.0,57401.0,0.58064578]
[1725241212328,0.0004,57402.0,57401.0,5.47928578]
[1725241213131,0.0004,57410.0,57409.0,0.087098]
[1725241213337,0.0004,57410.0,57409.0,0.607898]
[1725241213732,0.1104,57410.0,57409.0,0.607898]
[1725241214132,0.0004,57410.0,57409.0,0.607898]
[1725241214343,0.00026141,57415.0,57414.0,0.087091]
[1725241214536,0.12026141,57415.0,57414.0,0.247091]
[1725241215443,0.12026141,57415.0,57414.0,0.607891]
[1725241218344,0.19116201,57433.0,57414.0,1.64332]
[1725241218550,0.19116201,57433.0,57413.0,0.16369479]
[1725241218551,0.04,57433.0,57432.0,0.5208]
[1725241218764,0.05344513,57435.0,57432.0,0.607863]
[1725241219045,0.05344513,57434.0,57433.0,0.087062]
[1725241219233,0.03,57434.0,57433.0,0.087062]
[1725241219441,0.00026118,57439.0,57438.0,0.087054]
[1725241219642,0.00026118,57439.0,57438.0,0.607854]
[1725241219845,0.0627,57454.0,57438.0,1.64308]
[1725241220047,0.0627,57454.0,57444.0,0.3608]
[1725241220048,0.05343117,57453.0,57444.0,0.3608]
[1725241220246,0.08,57453.0,57450.0,0.447835]
[1725241220446,0.08,57453.0,57452.0,0.16]
[1725241220850,0.167032,57453.0,57450.0,0.3608]
[1725241221048,0.0004,57451.0,57450.0,0.3608]
[1725241221243,0.1204,57451.0,57450.0,0.3608]
[1725241221548,0.1204,57451.0,57450.0,0.3618]
[1725241223360,0.0004,57451.0,57450.0,0.3618]
[1725241224256,0.0804,57451.0,57450.0,0.3618]
[1725241224641,0.0804,57451.0,57450.0,0.3608]
[1725241224953,0.0004,57451.0,57450.0,0.3608]
[1725241225654,0.0004,57451.0,57450.0,0.3638]
[1725241226850,0.1104,57451.0,57450.0,0.3638]
[1725241227358,0.1104,57451.0,57450.0,0.3608]
[1725241227861,0.197435,57451.0,57450.0,0.3608]
[1725241228758,0.1104,57451.0,57447.0,0.00026118]
[1725241228956,0.087039,57449.0,57447.0,0.00026118]
[1725241229261,0.0004,57448.0,57447.0,0.00026118]
[1725241229459,0.1204,57448.0,57447.0,0.00026118]
[1725241229956,0.207439,57448.0,57447.0,0.00026118]
[1725241230359,0.207439,57448.0,57447.0,0.36106118]
[1725241232055,0.207439,57448.0,57447.0,0.00026118]
[1725241232261,0.207439,57448.0,57447.0,0.36106118]
[1725241232656,0.207439,57448.0,57447.0,0.00026118]
[1725241233953,0.207439,57448.0,57435.0,0.3608]
[1725241233954,0.087054,57438.0,57435.0,0.3608]
[1725241234259,0.197054,57438.0,57436.0,0.16]
[1725241234457,0.0004,57437.0,57436.0,0.16]
[1725241234763,0.1204,57437.0,57436.0,0.16]
[1725241235261,0.1184,57437.0,57436.0,0.16]
[1725241236651,0.205456,57437.0,57436.0,0.16]
[1725241238357,0.209178,57437.0,57436.0,0.16]
[1725241239858,0.1184,57437.0,57436.0,0.16]
[1725241240164,0.1184,57437.0,57436.0,0.247057]
[1725241240957,0.1184,57437.0,57436.0,0.16]
[1725241241266,0.205456,57437.0,57436.0,0.002]
[1725241241660,0.25889475,57437.0,57436.0,0.002]
[1725241241962,0.25889475,57437.0,57431.0,0.00026118]
[1725241241963,0.17183875,57437.0,57431.0,0.00026118]
[1725241242163,0.0004,57432.0,57431.0,0.00026118]
[1725241242364,0.16384143,57432.0,57431.0,0.00026118]
[1725241242563,0.16384143,57432.0,57371.0,0.08663664]
[1725241242564,1.64700442,57432.0,57425.0,0.00156]
[1725241242755,0.3612,57426.0,57410.0,0.3624]
[1725241242955,0.1604,57411.0,57398.0,0.16]
[1725241243162,0.0004,57399.0,57398.0,0.247115]
[1725241243360,0.0871,57408.0,57398.0,0.247115]
[1725241243560,0.0871,57408.0,57398.0,0.25080307]
[1725241243561,0.2071,57408.0,57398.0,0.25080307]
[1725241244870,0.2071,57408.0,57398.0,0.25980307]
[1725241246275,0.2071,57408.0,57398.0,0.256115]
[1725241248465,0.2071,57408.0,57399.0,0.087113]
[1725241249669,0.2071,57408.0,57400.0,0.087112]
[1725241249970,0.12,57408.0,57405.0,0.16]
[1725241250171,0.00026118,57409.0,57405.0,0.16]
[1725241250574,0.00026118,57409.0,57406.0,3.77]
[1725241251075,0.00026118,57409.0,57408.0,0.0871]
[1725241251269,0.11026118,57409.0,57406.0,0.00156]
[1725241251464,0.1604,57407.0,57403.0,0.3608]
[1725241251776,0.2704,57407.0,57403.0,0.3608]
[1725241251980,0.357501,57407.0,57406.0,0.004]
[1725241252474,1.480101,57407.0,57406.0,0.004]
[1725241252666,1.567202,57407.0,57406.0,0.004]
[1725241252861,0.17423,57398.0,57397.0,0.00252236]
[1725241253066,0.728315,57398.0,57397.0,0.00252236]
[1725241253274,1.250995,57398.0,57397.0,0.00252236]
[1725241254259,1.845995,57398.0,57397.0,0.00252236]
[1725241254464,1.84970887,57398.0,57397.0,0.00252236]
[1725241255067,1.84970887,57398.0,57397.0,0.00352236]
[1725241255465,1.24970887,57398.0,57397.0,0.00352236]
[1725241255667,1.84970887,57398.0,57397.0,0.00352236]
[1725241257066,1.08970887,57398.0,57397.0,0.00352236]
[1725241257272,0.56702887,57398.0,57397.0,0.00352236]
[1725241257475,1.08970887,57398.0,57397.0,0.00352236]
[1725241257781,1.25870887,57398.0,57397.0,0.00352236]
[1725241258176,0.89790887,57398.0,57397.0,0.00352236]
[1725241258572,1.48890887,57398.0,57397.0,0.00252236]
[1725241258773,1.49790887,57398.0,57397.0,0.00352236]
[1725241259979,0.89790887,57398.0,57397.0,0.00352236]
[1725241260374,1.49790887,57398.0,57397.0,0.00352236]
[1725241260981,1.58502387,57398.0,57397.0,0.00352236]
[1725241261187,0.087136,57385.0,57380.0,0.36441263]
[1725241261383,0.14354018,57385.0,57380.0,0.36441263]
[1725241262481,0.14254018,57385.0,57380.0,0.36441263]
[1725241263476,0.1,57385.0,57383.0,0.16]
[1725241264675,0.1,57385.0,57380.0,0.45155463]
[1725241264876,0.1,57385.0,57383.0,0.004]
[1725241265075,0.187135,57385.0,57383.0,0.004]
[1725241265281,0.087136,57384.0,57383.0,0.004]
[1725241265479,0.347136,57384.0,57383.0,0.004]
[1725241265678,0.087145,57378.0,57377.0,0.00026118]
[1725241265982,0.195145,57378.0,57377.0,0.00026118]
[1725241267375,0.194145,57378.0,57377.0,0.00026118]
[1725241268784,0.194545,57378.0,57377.0,0.00326118]
[1725241269583,0.1104,57378.0,57377.0,0.09040818]
[1725241270282,0.04935854,57378.0,57377.0,0.15971749]
[1725241270578,0.04935854,57378.0,57377.0,0.09040818]
[1725241271288,0.13650354,57378.0,57377.0,0.07234287]
[1725241271586,0.13650354,57378.0,57377.0,0.00326118]
[1725241271987,0.13650354,57378.0,57377.0,3.77326118]
[1725241273090,0.04935854,57378.0,57377.0,1.21324818]
[1725241273290,0.04183618,57378.0,57377.0,1.34605669]
[1725241273585,0.04183618,57378.0,57377.0,4.04991669]
[1725241274083,0.48978118,57378.0,57377.0,0.13606969]
[1725241274389,0.12898118,57378.0,57377.0,0.00326118]
[1725241274781,0.04183618,57378.0,57377.0,0.00326118]
[1725241275285,0.04183618,57378.0,57377.0,0.08973184]
[1725241276294,0.04541328,57378.0,57377.0,0.13607588]
[1725241277284,0.04183618,57378.0,57377.0,0.13607588]
[1725241278182,0.04183618,57378.0,57377.0,0.22322288]
[1725241279082,0.04183618,57378.0,57377.0,0.32677334]
[1725241280091,0.04183618,57378.0,57377.0,0.22322288]
[1725241280596,0.04183618,57378.0,57377.0,0.09040818]
[1725241283090,0.04183618,57378.0,57377.0,0.20810818]
[1725241283291,0.04183618,57378.0,57377.0,0.73094818]
[1725241283682,0.0004,57378.0,57377.0,1.41809518]
[1725241284083,0.3608,57390.0,57388.0,0.08713]
[1725241284289,0.12026118,57389.0,57388.0,0.24713]
[1725241284488,0.12026118,57389.0,57382.0,0.3608]
[1725241284688,0.087145,57378.0,57377.0,0.01166118]
[1725241284893,0.357145,57378.0,57377.0,0.01166118]
[1725241286192,0.349145,57378.0,57377.0,0.00066118]
[1725241286393,0.189145,57378.0,57377.0,0.00066118]
[1725241286988,0.189145,57378.0,57377.0,0.00566118]
[1725241287893,0.189145,57378.0,57377.0,0.00266118]
[1725241288696,0.189145,57378.0,57377.0,0.23947239]
[1725241289402,0.189145,57378.0,57377.0,0.13547836]
[1725241290098,0.189145,57378.0,57377.0,0.23972977]
[1725241290499,0.189145,57378.0,57377.0,0.13547836]
[1725241290805,0.349145,57378.0,57377.0,0.13547836]
[1725241292092,0.189145,57378.0,57377.0,0.13547836]
[1725241293385,0.189145,57378.0,57377.0,0.13747836]
[1725241293996,0.189145,57378.0,57377.0,0.13347836]
[1725241294195,0.189145,57378.0,57377.0,0.13547836]
[1725241296297,0.189145,57378.0,57377.0,0.08958077]
[1725241297103,0.189145,57378.0,57377.0,0.00266118]
[1725241300203,0.189145,57378.0,57377.0,0.07220327]
[1725241301099,0.189145,57378.0,57377.0,0.07221733]
[1725241302098,0.189145,57378.0,57377.0,0.07222332]
[1725241302401,0.189145,57378.0,57377.0,0.07222344]
[1725241302594,0.189145,57378.0,57377.0,0.00266118]
[1725241303206,0.189145,57378.0,57377.0,0.07222506]
[1725241303599,0.189145,57378.0,57377.0,0.00266118]
[1725241305106,0.27629,57378.0,57377.0,0.00266118]
[1725241312114,0.189145,57378.0,57377.0,0.00266118]
[1725241313118,0.189145,57378.0,57377.0,0.07222506]
[1725241313314,0.189145,57378.0,57377.0,0.00266118]
[1725241313711,0.11,57378.0,57377.0,0.00266118]
[1725241313911,0.197145,57378.0,57377.0,0.00266118]
[1725241315811,0.197145,57378.0,57377.0,0.07236283]
[1725241316017,0.197145,57378.0,57377.0,0.07036283]
[1725241316312,0.201145,57378.0,57377.0,0.07036283]
[1725241316922,0.201145,57378.0,57377.0,0.00066118]
[1725241317121,0.201145,57378.0,57377.0,0.07036283]
[1725241317522,0.201145,57378.0,57377.0,0.00066118]
[1725241319019,1.259075,57378.0,57377.0,1.8e-07]
[1725241319209,1.41113,57378.0,57377.0,1.8e-07]
[1725241319415,0.52288,57377.0,57363.0,0.06971821]
[1725241319713,0.7216,57364.0,57355.0,0.06972104]
[1725241319915,0.5208,57356.0,57352.0,0.06972104]
[1725241320115,0.5208,57356.0,57341.0,0.10425141]
[1725241320116,0.087186,57351.0,57349.0,0.06972104]
[1725241320319,0.087186,57351.0,57340.0,0.3608]